{"text_format":"3","workbook":"xlsx","n_sheets":2,"sheets":["KAIP NAUDOTI ŠIĄ DARBAKNYGĘ","ĮVERTINIMŲ ŽURNALAS"],"not_rendered":{"defined_names":7},"read":"whole","date_system":"1900"}

{"sheet":"KAIP NAUDOTI ŠIĄ DARBAKNYGĘ","index":0,"n_rows":10,"n_cols":2,"rows_kept":10}
[null,"INSTRUKCIJOS"]
[null,"Naudodami ĮVERTINIMŲ ŽURNALO darbalapį apskaičiuokite įvertinimus, kai kiekviena užduotis verta tam tikro taškų skaičiaus. "]
[null,"Instrukcijos:   Nepamirškite įrašyti įvertinimų atsarginių kopijų."]
[null,"1. Įveskite mokyklos pavadinimą, klasės informaciją, mokinių bardus ir mokinių ID (pasirinktinai).   "]
[null,"2. Keiskite įvertinimus ir GPSA lentelę atsižvelgdami į naudojamą vertinimo sistemą."]
[null,"3. Įveskite užduoties, apklausos ar testo pavadinimus (pvz., „1apklausos“) nuo langelio H8 kartu su taškais už kiekvieną užduotį. "]
[null,"4. Užpildykite kiekvieno mokinio įvertinimą už kiekvieną užduotį ar testą. Automatiškai apskaičiuojami stulpeliai „Vidurkis“, „Rezultatas“, „Ltr vertinimas“ ir GPA“, tačiau juos galima perrašyti. Norėdami skirti papildomų taškų, paprasčiausiai skirkite daugiau taškų už užduotį, negu bendras galimų taškų skaičius, nurodytas tai užduočiai."]
[null,"Naudokite komandą „Spausdinimo sritis“ meniu Puslapio maketas, jei norite pakeisti, kokia sritis bus išspausdinta."]
[null,"Įvertinimų rezultatai priklauso nuo standartinės procentų skalės atsižvelgiant į 8 ir 9 eilučių bendrą priskirtų taškų skaičių.  Koreguokite kiekvieną užduotį ar testą naudodami reikiamą taškų skaičių, tada koreguokite procentinę reikšmę su atitinkamu įvertinimu.  Perrašykite įvertinimo langelius, kad atliktumėte pakeitimus rankiniu būdu."]
[null,"Įveskite kiekvieną užduotį, apklausą ar testą ir už juos skiriamus balus langeliuose nuo H8 iki X9."]

{"sheet":"ĮVERTINIMŲ ŽURNALAS","index":1,"n_rows":24,"n_cols":24,"rows_kept":24,"merged":[[1,1,2,6],[3,1,3,6],[4,1,6,6],[7,4,7,6],[8,4,8,6],[10,4,10,6],[11,4,11,6],[20,1,20,2],[20,3,20,4],[21,1,21,2],[21,3,21,4],[22,1,22,2],[22,3,22,4],[23,1,23,2],[23,3,23,4]]}
[null,"MOKYKLOS PAVADINIMAS"]
[null,"Mokytojo vardas ir pavardė"]
[{"$nulls":7},"Rezultatas",{"$f":"I4*TaškųSuma","v":118},120,126,134,140,{"v":145.6666666666666,"d":"146"},154,160,166,174,180,186,194]
[null,"Klasė / projektas",{"$nulls":5},"%",{"v":0.59,"d":"59%"},{"v":0.6,"d":"60%"},{"v":0.63,"d":"63%"},{"v":0.67,"d":"67%"},{"v":0.7,"d":"70%"},{"v":0.728333333333333,"d":"73%"},{"v":0.77,"d":"77%"},{"v":0.8,"d":"80%"},{"v":0.83,"d":"83%"},{"v":0.87,"d":"87%"},{"v":0.9,"d":"90%"},{"v":0.93,"d":"93%"},{"v":0.97,"d":"97%"}]
[null,"Metai/semestras/ketvirtis",{"$nulls":5},"Ltr vertinimas","F","D-","D","D+","C-","C","C+","B-","B","B+","A-","A","A+"]
[{"$nulls":7},"GPA",0,0.67,1,1.33,1.67,2,2.33,2.67,3,3.33,3.67,4,4]
[]
[{"$nulls":4},"Užduoties ar testo pavadinimas",null,null,"HW1","HW2","1 ketv."]
[{"$nulls":4},"Visi galimi balai",null,null,50,50,100]
[]
[{"$nulls":4},"Bendras užduočių ir testų skaičius:",null,null,{"$f":"COUNTA(H8:AH8)","v":3}]
[{"$nulls":4},"Bendras galimas taškų skaičius:",null,null,{"$f":"SUM(H9:AH9)","v":200}]
[]
[null,"Mokinio vardas","Mokinio ID","Vidurkis","Rezultatas","Ltr vertinimas","GPA","6stulpelis","7stulpelis","8stulpelis","9stulpelis","10stulpelis","11stulpelis","12stulpelis","13stulpelis","14stulpelis","15stulpelis","16stulpelis","17stulpelis","18stulpelis","19stulpelis","20stulpelis","21stulpelis","22stulpelis"]
[null,"Mokinys Nr. 1",null,{"$f":"IFERROR(IF(COUNT(Įvertinimai[[#This Row],[6stulpelis]:[22stulpelis]])=0,\"\",SUM(Įvertinimai[[#This Row],[6stulpelis]:[22stulpelis]])/TaškųSuma),\"\")","v":{"v":0.91,"d":"91.0%"}},{"$f":"IF(COUNT(Įvertinimai[[#This Row],[6stulpelis]:[22stulpelis]])=0,\"\",SUM(Įvertinimai[[#This Row],[6stulpelis]:[22stulpelis]]))","v":182},{"$f":"IFERROR(IF(Įvertinimai[[#This Row],[Vidurkis]]<>\"\",HLOOKUP(Įvertinimai[[#This Row],[Vidurkis]]*TaškųSuma,ĮvertinimųLentelė,3),\"\"),0)","v":"A-"},{"$f":"IFERROR(IF(Įvertinimai[[#This Row],[Vidurkis]]<>\"\",HLOOKUP(Įvertinimai[[#This Row],[Vidurkis]]*TaškųSuma,ĮvertinimųLentelė,4),\"\"),0)","v":3.67},45,45,92]
[null,"Mokinys Nr. du",null,{"$f":"IFERROR(IF(COUNT(Įvertinimai[[#This Row],[6stulpelis]:[22stulpelis]])=0,\"\",SUM(Įvertinimai[[#This Row],[6stulpelis]:[22stulpelis]])/TaškųSuma),\"\")","v":{"v":1,"d":"100.0%"}},{"$f":"IF(COUNT(Įvertinimai[[#This Row],[6stulpelis]:[22stulpelis]])=0,\"\",SUM(Įvertinimai[[#This Row],[6stulpelis]:[22stulpelis]]))","v":200},{"$f":"IFERROR(IF(Įvertinimai[[#This Row],[Vidurkis]]<>\"\",HLOOKUP(Įvertinimai[[#This Row],[Vidurkis]]*TaškųSuma,ĮvertinimųLentelė,3),\"\"),0)","v":"A+"},{"$f":"IFERROR(IF(Įvertinimai[[#This Row],[Vidurkis]]<>\"\",HLOOKUP(Įvertinimai[[#This Row],[Vidurkis]]*TaškųSuma,ĮvertinimųLentelė,4),\"\"),0)","v":{"v":4,"d":"4.00"}},50,50,100]
[{"$nulls":3},{"$f":"IFERROR(IF(COUNT(Įvertinimai[[#This Row],[6stulpelis]:[22stulpelis]])=0,\"\",SUM(Įvertinimai[[#This Row],[6stulpelis]:[22stulpelis]])/TaškųSuma),\"\")","v":""},{"$f":"IF(COUNT(Įvertinimai[[#This Row],[6stulpelis]:[22stulpelis]])=0,\"\",SUM(Įvertinimai[[#This Row],[6stulpelis]:[22stulpelis]]))","v":""},{"$f":"IFERROR(IF(Įvertinimai[[#This Row],[Vidurkis]]<>\"\",HLOOKUP(Įvertinimai[[#This Row],[Vidurkis]]*TaškųSuma,ĮvertinimųLentelė,3),\"\"),0)","v":""},{"$f":"IFERROR(IF(Įvertinimai[[#This Row],[Vidurkis]]<>\"\",HLOOKUP(Įvertinimai[[#This Row],[Vidurkis]]*TaškųSuma,ĮvertinimųLentelė,4),\"\"),0)","v":""}]
[{"$nulls":3},{"$f":"IFERROR(IF(COUNT(Įvertinimai[[#This Row],[6stulpelis]:[22stulpelis]])=0,\"\",SUM(Įvertinimai[[#This Row],[6stulpelis]:[22stulpelis]])/TaškųSuma),\"\")","v":""},{"$f":"IF(COUNT(Įvertinimai[[#This Row],[6stulpelis]:[22stulpelis]])=0,\"\",SUM(Įvertinimai[[#This Row],[6stulpelis]:[22stulpelis]]))","v":""},{"$f":"IFERROR(IF(Įvertinimai[[#This Row],[Vidurkis]]<>\"\",HLOOKUP(Įvertinimai[[#This Row],[Vidurkis]]*TaškųSuma,ĮvertinimųLentelė,3),\"\"),0)","v":""},{"$f":"IFERROR(IF(Įvertinimai[[#This Row],[Vidurkis]]<>\"\",HLOOKUP(Įvertinimai[[#This Row],[Vidurkis]]*TaškųSuma,ĮvertinimųLentelė,4),\"\"),0)","v":""}]
[{"$nulls":3},{"$f":"IFERROR(IF(COUNT(Įvertinimai[[#This Row],[6stulpelis]:[22stulpelis]])=0,\"\",SUM(Įvertinimai[[#This Row],[6stulpelis]:[22stulpelis]])/TaškųSuma),\"\")","v":""},{"$f":"IF(COUNT(Įvertinimai[[#This Row],[6stulpelis]:[22stulpelis]])=0,\"\",SUM(Įvertinimai[[#This Row],[6stulpelis]:[22stulpelis]]))","v":""},{"$f":"IFERROR(IF(Įvertinimai[[#This Row],[Vidurkis]]<>\"\",HLOOKUP(Įvertinimai[[#This Row],[Vidurkis]]*TaškųSuma,ĮvertinimųLentelė,3),\"\"),0)","v":""},{"$f":"IFERROR(IF(Įvertinimai[[#This Row],[Vidurkis]]<>\"\",HLOOKUP(Įvertinimai[[#This Row],[Vidurkis]]*TaškųSuma,ĮvertinimųLentelė,4),\"\"),0)","v":""}]
[]
[null,"Klasės suvestinė",null,"Vidurkis",null,"Ltr vertinimas","GPA","","","","","","","","","","",""]
[null," Vidurkis",null,{"$f":"IFERROR(AVERAGE(Įvertinimai[[#All],[Vidurkis]]),0)","v":{"v":0.9550000000000001,"d":"95.5%"}},null,{"$f":"IFERROR(HLOOKUP(D22*TaškųSuma,ĮvertinimųLentelė,3),\"\")","v":"A"},{"$f":"IFERROR(AVERAGE(Įvertinimai[[#All],[GPA]]),0)","v":{"v":3.835,"d":"3.84"}},"","","","","","","","","","","","","","","","",""]
[null," Aukščiausias įvertinimas",null,{"$f":"IFERROR(MAX(Įvertinimai[[#All],[Vidurkis]]),0)","v":{"v":1,"d":"100.0%"}},null,{"$f":"IFERROR(HLOOKUP(D23*TaškųSuma,ĮvertinimųLentelė,3),\"\")","v":"A+"},{"$f":"IFERROR(MAX(Įvertinimai[[#All],[GPA]]),0)","v":{"v":4,"d":"4.00"}},"","","","","","","","","","","","","","","","",""]
[null," Žemiausias įvertinimas",null,{"$f":"IFERROR(MIN(Įvertinimai[[#All],[Vidurkis]]),0)","v":{"v":0.91,"d":"91.0%"}},null,{"$f":"IFERROR(HLOOKUP(D24*TaškųSuma,ĮvertinimųLentelė,3),\"\")","v":"A-"},{"$f":"IFERROR(MIN(Įvertinimai[[#All],[GPA]]),0)","v":3.67},"","","","","","","","","","","","","","","","",""]